Cogmind - Beta 16 @@@ ROGUE MODE // 2025.10.25 @ 13:06:34 Player: Mxykikker Result: Destroyed by Q2-EWB(j) with Overtuned Pulse Rifle Performance ------------- Evolutions (0) 0 Regions Visited (3) 600 Robots Destroyed (11) 55 Value Destroyed (271) 271 Prototype IDs (8) 160 Alien Tech Used (0) 0 Bonus (800) 800 TOTAL SCORE: 1886 Bonus ------- Registered with UFD 300 Met Optimus in HQ 500 Cogmind --------- Core Integrity 0/250 Matter 300/300 Energy 158/160 System Corruption 0% Temperature Cool (12) Movement Rolling (100) Location -8/Scraptown Parts ------- > --- POWER (1) -------- Light Nuclear Core > --- PROPULSION (2) --- Compact Wheel Compact Wheel > --- UTILITY (2) ------ Scrap Suit > --- WEAPON (2) ------- Chainsword Ripteeth > --- INVENTORY (5) ---- Vampiric Humpback Rocket Booster Microactuators CPS Tube (2) Peak State ------------ > --- POWER ------------ Light Nuclear Core > --- PROPULSION ------- Flight Unit Cesium-ion Thruster > --- UTILITY ---------- Scrap Suit > --- WEAPON ----------- Chainsword Ripteeth > --- INVENTORY -------- Weight Redist. System Rocket Booster Microactuators CPS Tube CPS Tube [Rating: 24] Favorites ----------- Power Light Nuclear Core Engine Ion Engine Power Core Light Nuclear Core Propulsion Compact Wheel Wheel Compact Wheel Flight Unit Flight Unit Utility Small Storage Unit Device Improved Terrain Scanner Storage Small Storage Unit Weapon Mace Energy Gun Small Laser Ballistic Gun Heavy Assault Rifle Ballistic Cannon Battle Cannon Impact Weapon Mace Slashing Weapon Chainsword Build | -11 -10 -10 -8 ------- Run | Yrd Mat Sub Scr Slots Evolved . | . . . . Power . | . . . . Propulsion . | . . . . Utility . | . . . . Weapon . | . . . . Parts Attached 23 | 7 5 2 9 Power 3 | 1 . 1 1 Engine 1 | 1 . . . Core 2 | . . 1 1 Reactor . | . . . . Propulsion 8 | 2 1 . 5 Treads . | . . . . Leg . | . . . . Wheel 5 | 2 1 . 2 Hover . | . . . . Flight 3 | . . . 3 Utility 4 | 2 . . 2 Device 3 | 1 . . 2 Storage 1 | 1 . . . Processor . | . . . . Hackware . | . . . . Protection . | . . . . Artifact . | . . . . Weapon 8 | 2 4 1 1 Energy Gun 2 | 2 . . . Energy Cannon . | . . . . Ballistic Gun 3 | . 3 . . Ballistic Cannon 1 | . . 1 . Launcher . | . . . . Special Weapon . | . . . . Impact Weapon 1 | . 1 . . Slashing Weapon 1 | . . . 1 Piercing Weapon . | . . . . Special Melee Weapon . | . . . . Unidentified Prototypes . | . . . . Parts Lost 2 | . . 1 1 Power 1 | . . 1 . Propulsion 1 | . . . 1 Utility . | . . . . Weapon . | . . . . Highest Loss Streak 1 | . . 1 1 To Critical Strikes . | . . . . Average Backups 6 | . 6 7 7 Power . | . . 1 . Propulsion 1 | . 1 2 1 Utility 3 | . 1 3 3 Weapon 1 | . 3 1 1 Tool/Special . | . . . . Unused Backups 18 | . 6 . 12 Power 2 | . 2 . . Propulsion 2 | . . . 2 Utility 7 | . . . 7 Weapon 5 | . 4 . 1 Tool/Special 2 | . . . 2 Average Slot Usage (%) 83 | . 99 88 76 Engine 5 | . 14 9 . Core 8 | . . 4 14 Wheel 22 | . 28 28 16 Flight 5 | . . . 10 Device 6 | . 14 3 6 Storage 12 | . 14 14 12 Ballistic Gun 6 | . 23 9 . Ballistic Cannon 1 | . . 4 . Impact Weapon 9 | . 1 14 8 Slashing Weapon 3 | . . . 7 Peak Build Rating 24 | 9 12 12 24 Average Rating 11 | 5 11 10 12 On Entrance 8 | . 9 12 11 Avg Prop Armor Cover (%) 3 | . . . 3 Naked Turns . | . . . . Heaviest Build 17 | 13 17 16 15 Greatest Support 32 | 32 32 26 32 Greatest Overweight (x) 2 | . . . 2 Average Overweight (x) . | . . . . Largest Inventory Capacity 8 | 8 8 8 8 Average Capacity 7 | 7 8 8 7 Most Carried 8 | 2 8 8 8 Average Carried 6 | . 6 7 7 Final Capacity 8 | 8 8 8 5 Final Carried 8 | 1 7 8 5 Scrap Suit Usage (%) 6 | . . . 13 Parts Cannibalized 1 | . . . 1 Class Distribution -------------------- 87% | Mutant 4% | Scrapper 4% | Scavenger-Scrapper 3% | Scavenger-Mutant Dominant Class ---------------- Mutant | -10/Materials Mutant | -10/Subcaves Mutant | -8/Scraptown Resources | -11 -10 -10 -8 ----------- Run | Yrd Mat Sub Scr Matter Collected 565 | 256 130 18 161 Remotely . | . . . . Salvage Created 367 | 43 171 153 . Parts 18 | 1 9 8 . Haulers Intercepted 1 | . 1 . . Recyclers Shooed . | . . . . Parts Field Recycled . | . . . . Retrieved Matter . | . . . . Parts Self-Destructed 14 | . . 14 . Prevented 2 | . . 2 . Parts Restored . | . . . . Kills | -11 -10 -10 -8 ------- Run | Yrd Mat Sub Scr Combat Hostiles Destroyed 7 | . 2 5 . Melee 2 | . . 2 . Guns 4 | . 2 2 . Classes Destroyed 5 | 1 3 1 . Tunneler 2 | 2 . . . Hauler 1 | . 1 . . Watcher 1 | . 1 . . Swarmer 2 | . . 2 . Grunt 5 | . 2 3 . Best Kill Streak 4 | 2 4 2 . Combat Bots Only 2 | . 1 2 . Max Kills in Single Turn 1 | 1 1 1 . Gunslinging . | . . . . Exploded . | . . . . Melee 1 | . . 1 . Uniques/NPCs Destroyed . | . . . . Combat | -11 -10 -10 -8 -------- Run | Yrd Mat Sub Scr Hostile Shots Fired 61 | . 5 50 6 Missed 15 | . 2 12 1 Hits 46 | . 3 38 5 Projectile 46 | . 3 38 5 Critical Strikes 1 | . . 1 . Damage Taken 760 | . 37 591 132 Core 256 | . 25 197 34 Absorbed by Shields . | . . . . Regen/Repaired (Parts) 3 | . . . 3 Core Remaining (%) 100 | 100 . . . Volleys Fired 39 | 9 11 19 . Largest 2 | 2 2 1 . Hottest 80 | 80 46 33 . Shots Fired 59 | 18 22 19 . Gun 53 | 18 22 13 . Cannon 6 | . . 6 . Launcher . | . . . . Special . | . . . . Kinetic 41 | . 22 19 . Thermal 18 | 18 . . . Explosive . | . . . . Electromagnetic . | . . . . Robot Hit Streak 11 | 5 10 11 . Robot Miss Streak 2 | 2 . 1 . Penetration Max . | . . . . Secondary Targets . | . . . . Shots Hit Robots 39 | 10 8 21 . Core Hits 13 | 2 5 6 . Critical Kills 1 | . . 1 . Critical Parts Destroyed . | . . . . Critical Strikes 1 | . . 1 . Smash 1 | . . 1 . Melee Attacks 16 | . 1 8 7 Impact 9 | . 1 8 . Slashing 7 | . . . 7 Piercing . | . . . . Sneak Attacks . | . . . . Combat Hostiles . | . . . . Follow-up Attacks . | . . . . Damage Inflicted 670 | 118 126 426 . Guns 384 | 118 125 141 . Cannons 85 | . . 85 . Explosions . | . . . . Melee 200 | . . 200 . Ramming 1 | . 1 . . Kinetic 351 | . 125 226 . Thermal 118 | 118 . . . Explosive . | . . . . Electromagnetic . | . . . . Impact 200 | . . 200 . Slashing . | . . . . Piercing . | . . . . Highest Corruption . | . . . . Average Corruption . | . . . . Corruption Purged . | . . . . Corruption Blocked . | . . . . Overload Shots . | . . . . Overflow Damage 10 | . . 10 . Projectiles . | . . . . Explosions . | . . . . Melee 10 | . . 10 . Knockbacks 1 | . . 1 . Impact . | . . . . Kinetic 1 | . . 1 . Secondary . | . . . . Self-Inflicted Damage . | . . . . Shots . | . . . . Rammed 1 | . 1 . . Targets Rammed 1 | . 1 . . Kicked . | . . . . Crushed . | . . . . Highest Temperature 182 | 182 4 . . Average Temperature 93 | 99 2 . . Received Heat Transfer 303 | . 21 234 48 Siege Activations . | . . . . Martial Activations . | . . . . Shielding Activations . | . . . . Robots Disrupted . | . . . . Combat Hostiles . | . . . . Robots Corrupted 1 | . . 1 . Combat Hostiles 1 | . . 1 . Parts Fried 2 | . . 2 . Impact Corruptions 2 | . . 2 . Robots Melted . | . . . . Combat Hostiles . | . . . . Parts Melted 1 | 1 . . . Heat Transferred 275 | 275 . . . Parts Sabotaged . | . . . . Parts Stolen . | . . . . Parts Stripped . | . . . . Power Chain Reactions . | . . . . Alert | -11 -10 -10 -8 ------- Run | Yrd Mat Sub Scr Maximum Alert Level . | . . . . Low Security (%) 100 | 100 100 . . Level 1 . | . . . . Level 2 . | . . . . Level 3 . | . . . . Level 4 . | . . . . Level 5 . | . . . . High Security . | . . . . Max Security . | . . . . Peak Influence 49 | 10 49 . . Initial . | . . . . Average 7 | . 9 . . Influence Increases 224 | 10 84 130 . Destroy 0b10 Robot/C 140 | . 40 100 . Destroy 0b10 Robot/NC 20 | 10 10 . . Destroy Leader 44 | . 14 30 . Successful Hack 5 | . 5 . . Disable Machine 15 | . 15 . . Influence Decreases 224 | 10 45 169 . Entered New Map 19 | . . 19 . Time Decay 195 | 10 45 140 . Lost Part 10 | . . 10 . Squads Dispatched 1 | . 1 . . Investigation 1 | . 1 . . Extermination . | . . . . Reinforcement . | . . . . Assault . | . . . . Garrison . | . . . . Intercept . | . . . . Searches Triggered . | . . . . Construction Impeded . | . . . . Haulers Reinforced . | . . . . Active Scanning Responses . | . . . . Cargo Convoy Interrupts . | . . . . Stealth | -11 -10 -10 -8 --------- Run | Yrd Mat Sub Scr Distress Signals . | . . . . Communications Jammed . | . . . . Distress Signals . | . . . . Times Spotted 22 | . 5 9 8 Peak Tracking Total 4 | . 2 3 4 Tactical Retreats . | . . . . Traps | -11 -10 -10 -8 ------- Run | Yrd Mat Sub Scr Traps Triggered . | . . . . Indirectly . | . . . . Trap Hack Attempts . | . . . . Triggered . | . . . . Disarmed . | . . . . Reprogrammed . | . . . . Reused . | . . . . Traps Extracted . | . . . . Installed . | . . . . Triggered . | . . . . Machines | -11 -10 -10 -8 ---------- Run | Yrd Mat Sub Scr Machines Disabled 2 | . 1 . 1 Max in Single Turn 1 | . 1 . 1 Machines Repaired . | . . . . Machines Dismantled . | . . . . Machines Sabotaged . | . . . . Overloaded Fab Kills . | . . . . Hacking | -11 -10 -10 -8 --------- Run | Yrd Mat Sub Scr Machines Accessed 10 | . 2 1 7 Terminals 2 | . 2 . . Fabricators . | . . . . Repair Stations . | . . . . Recycling Units . | . . . . Scanalyzers . | . . . . Garrison Access . | . . . . Total Hacks 59 | . 7 3 49 Successful 55 | . 3 3 49 Failed 4 | . 4 . . Catastrophic . | . . . . Database Lockouts . | . . . . Manual 6 | . 4 2 . Terminals 7 | . 7 . . Fabricators . | . . . . Repair Stations . | . . . . Recycling Units . | . . . . Scanalyzers . | . . . . Garrison Access . | . . . . Terminal Hacks 54 | . 2 3 49 Record 52 | . . 3 49 Prototype ID Bank 1 | . 1 . . Locate Traps 1 | . 1 . . Fabricator Hacks . | . . . . Repair Station Hacks . | . . . . Recycling Unit Hacks . | . . . . Scanalyzer . | . . . . Garrison Access Hacks . | . . . . Unauthorized Hacks 1 | . 1 . . Terminals 1 | . 1 . . Botnet 1 | . 1 . . Fabricators . | . . . . Repair Stations . | . . . . Recycling Units . | . . . . Scanalyzers . | . . . . Garrison Access . | . . . . Data Cores Recovered . | . . . . Used . | . . . . Hacking Detections 2 | . 2 . . Full Trace Events 1 | . 1 . . Feedback Events . | . . . . Feedback Blocked . | . . . . Robot Schematics Acquired . | . . . . Robots Built . | . . . . Authchips . | . . . . Time . | . . . . Total Robot Build Rating . | . . . . Part Schematics Acquired . | . . . . Parts Built . | . . . . Authchips . | . . . . Time . | . . . . Total Part Build Rating . | . . . . Part Studies Acquired . | . . . . Parts Repaired . | . . . . Time . | . . . . Parts Recycled . | . . . . Recycled Matter . | . . . . Retrieved Matter . | . . . . Retrieved Components . | . . . . Parts Scanalyzed . | . . . . Part Schematics Acquired . | . . . . Parts Damaged . | . . . . Bothacking | -11 -10 -10 -8 ------------ Run | Yrd Mat Sub Scr Used RIF Installer . | . . . . Robots Hacked . | . . . . Non-combat . | . . . . Combat . | . . . . Robot Hacks Applied . | . . . . Relay Couplers Released . | . . . . Fabnet Peak Effective % . | . . . . Robots Rewired . | . . . . Allies Hacked . | . . . . Hacks Repelled . | . . . . Allies | -11 -10 -10 -8 -------- Run | Yrd Mat Sub Scr Total Allies . | . . . . Largest Group . | . . . . Highest-Rated Group . | . . . . Highest-Rated Ally . | . . . . Total Orders . | . . . . Ally Attacks . | . . . . Total Damage . | . . . . Kills . | . . . . Allies Corrupted . | . . . . Allies Melted 3 | . . . 3 Intel | -11 -10 -10 -8 ------- Run | Yrd Mat Sub Scr Active Infowar (turns) 431 | 5 299 127 . Terrain 431 | 5 299 127 . Robot Analysis Total . | . . . . Derelict Logs Recovered . | . . . . Drone Launches . | . . . . Drone Recoveries . | . . . . Exploration | -11 -10 -10 -8 ------------- Run | Yrd Mat Sub Scr Turns Passed 2004 | 93 299 592 1020 Spaces Moved 2396 | 54 242 573 1527 Core 4 | 4 . . . Treads . | . . . . Legs . | . . . . Wheels 1459 | 50 242 573 594 Hover . | . . . . Flight 933 | . . . 933 Fastest Speed 34 | 50 90 90 34 Average Speed 71 | 96 94 90 60 Slowest Speed 195 | 100 100 90 195 Overloaded Moves . | . . . . Propulsion Burnouts . | . . . . Robots Hopped 10 | . . . 10 Potential Cave-ins . | . . . . Cave-ins Triggered . | . . . . Exploration Rate (%) 34 | 5 24 23 86 Regions Visited 3 Branch Regions 2 Pre-discovered Areas . | . . . . Known Exits Taken . | . . . . Unknown Exits Taken 3 | 1 1 1 . Scrap Searched 1 | . . . 1 Spaces Dug 1 | . . 1 . Terrain Destroyed 1 | . . 1 . Melee 1 | . . 1 . Projectile . | . . . . AOE . | . . . . Terrain Rammed . | . . . . Walls Destroyed . | . . . . Machines Disabled . | . . . . Actions | -11 -10 -10 -8 --------- Run | Yrd Mat Sub Scr Total 2604 | 77 293 618 1616 Wait 61 | . 4 10 47 Move 2378 | 53 241 572 1512 Hop 5 | . . . 5 Pick Up 43 | 8 17 3 15 Fast Attach . | . . . . Attach 19 | 7 3 2 7 Detach 7 | . 2 2 3 Swap 5 | . 2 . 3 Drop 29 | . 11 2 16 Fire 39 | 9 11 19 . Melee 16 | . 1 8 7 Ram 1 | . 1 . . Kick . | . . . . Crush . | . . . . Escape Stasis . | . . . . Rewire 1 | . . . 1 Trap . | . . . . Miscellaneous . | . . . . Route ------- -11/Scrapyard -10/Materials (discovered 2 exits: [*Mat] / *Sub) -10/Subcaves -8/Scraptown (discovered 2 exits: *Fac x2) History --------- Turn | Location | Event 22 | -11/Scrapyard | Discovered new exit (range 16) 94 | -11/Scrapyard | Entered Materials 95 | -10/Materials | Met a group of wandering Federalists 197 | -10/Materials | Discovered new exit (range 9) 247 | -10/Materials | Discovered new exit (range 9) 313 | -10/Materials | Build established: Mutant 393 | -10/Materials | Entered Subcaves 394 | -10/Subcaves | Continued accompanying wandering Federalists (4) 644 | -10/Subcaves | Wandering Federalist uncovered a shortcut to Scraptown 780 | -10/Subcaves | Core integrity fell below 50% 883 | -10/Subcaves | Visited Clippyterm 886 | -10/Subcaves | Learned Factory stockpile data 923 | -10/Subcaves | A Subdweller sparked back to life 923 | -10/Subcaves | A Subdweller sparked back to life 923 | -10/Subcaves | A Subdweller sparked back to life 958 | -10/Subcaves | Core integrity fell below 20% 985 | -10/Subcaves | Entered Scraptown 1128 | -8/Scraptown | Visited Cyclists 1156 | -8/Scraptown | Visited IN-MT5's Study 1287 | -8/Scraptown | Discovered new exit (range 13) 1350 | -8/Scraptown | Heard Great Nut preacher, LISTEN AND RECITE! 1570 | -8/Scraptown | Visited UFD Registry 1576 | -8/Scraptown | Visited Shadow of the Wyrm 1586 | -8/Scraptown | Visited Junk Repository 1608 | -8/Scraptown | Visited Fellowship of the Rings 1670 | -8/Scraptown | Visited Spacefarers 1691 | -8/Scraptown | Visited Symbiants 1726 | -8/Scraptown | Registered with UFD as "Electrotail" 1740 | -8/Scraptown | Visited Research Penetration Think Tank 1751 | -8/Scraptown | Visited Infowarlord's Domain 1762 | -8/Scraptown | Visited Chapter 10 1783 | -8/Scraptown | Visited Scrapoid Research Area 1794 | -8/Scraptown | Visited Derelict Rescue Squad 1797 | -8/Scraptown | Found DRS Beacon 1813 | -8/Scraptown | Met Optimus 1813 | -8/Scraptown | Accepted into 0bPrime 1834 | -8/Scraptown | Visited Scrap Suit Storage 1863 | -8/Scraptown | Found Scrap Suit 1866 | -8/Scraptown | Civil war broke out across Scraptown 1934 | -8/Scraptown | Lost 4 allies 1940 | -8/Scraptown | Identified exit to Factory 1958 | -8/Scraptown | Visited Curators Association 1973 | -8/Scraptown | Found Prototype Storage 2005 | -8/Scraptown | Destroyed by Q2-EWB(j) with Overtuned Pulse Rifle Last Messages --------------- 01941_ Acquired Com. Wheel. 01942_ Dropped Cesium-ion Thruster. 01946_ Acquired 20 matter. 01968_ Enclosure breached. 01972_ Dropped CPS Tube. 01973_ Acquired Prototype Storage. Optimus: "Someone shut down Triborg? Who would do that? How?!" 01994_ Slug penetrates Reinforced Barrier. 01994_ Slug penetrates VF-K7O(j). 01994_ VF-K7O(j) destroyed. 01998_ Slug penetrates Reinforced Barrier. 02000_ VK-U2X(j) destroyed. 02000_ Slug penetrates IW-9D7(g). 02000_ IW-9D7(g) suffers critical hit (Destroy). 02002_ Penetrated by Slug. 02005_ BX-F79(E): "To all who oppose us, at least your donations are appreciated." 02005_ IW-9D7(g) destroyed. 02005_ Slug penetrates MC-8UJ(j). Map ----- +----------------------------------------------------+ | #?# #?????????#"" "#?????#! !#??# | | #?# #?????????#"" #?????#! !#??# | | #?# #?????????#"" "#?????# #?### | | #?# #?????????#" #?????# #?# | | #?# #?????????##### ####?????## ####?###### | | ######### ####???????##### ########### ########### | | #???????#"""" """"""""""" """"""""""" | | #???????#" | | #???????#" | | #???????#" | | #???????#" | | #### #???#####" [ | | ???# #???#"""" """""""""""""""""""""" | | ???# #???#"""" """""""""""""""""""""" | | ???# #???#"""" ""###### ############ | | ???# #???#"""" ""# ##????? | | ???# #???#"""" ""# X"#????? | | ???# ###?#"""" ""# "" "" ##????? | | ???# ""#"#"""" E ""# "" "" X"#????? | | ???# """"#"""" ""# " " ####### | | ???# %!= ""#######" "" "" | | ???# !=[ ###?????#"! ! "" "" | | ???# !% #########"%*%= ""# " " ####### | | ???# !=% = ! ""# "" "" ""#????? | | ???# % !!%= = ""# "" "" ##????? | | ???# = =%! @ ""# X"#????? | | ???# !* ""# ##????? | | #### T ""###### ############ | | 3 " """"""""""""""""" | | [ " """"""""""""" | | ! %=%! | | %= = ![&! | | %jj !%%= | | % [ #""""# ![ [!= =! | | #????#" !%% =%! | | #????#"""""" " = ! ! """ | | ########## ####????######; ########""" ####""### | | # #????????#" "# % ### | | "# #????????##"" """" ! #?? | | ""# #?????????# | "]## """"" #?? | | ""# #????????##"" % ""## "###" #??""" | | ""# #????????# "# "#??" #?#" | | ""# #????????##"" ""## "#??" #??"" | | " " ""# #?????????#[" "!## ??? #?#"" | | """X"""""# #?????????#"" ""## "?????" #???" | | """""""""# #????????#" """ "#""???????#???" | | ########## #????????#### "!" ######????????????" | | ?????????# #???????????#"###"#?????????????????" | | ########## #???????????###??##?????????????????? | | """""""""" #???????????????????????????????????? | +----------------------------------------------------+ Best States ------------- Heat Dissipation 25 Energy Generation 14 Energy Capacity 250 Matter Stores 300 Matter Capacity 300 Sight Range 16 Terrain Scan Range 16 Terrain Scan Density 10 Additional Mass Support 6 Evasion (%) 63 Item Schematics ----------------- None Robot Schematics ------------------ None Fabricated ------------ Nothing Repaired ---------- Nothing Studied --------- None Alien Tech Used ----------------- None Achievements -------------- Civilization 2243 Link The Feds Strength In Numbers Challenges ------------ None Game ------ Seed GravjetVampiricTrap Manual? 0 Play Time 00:53:56 Cumulative 76.0 hours Start 2025.10.25 @ 12:06:02 End 2025.10.25 @ 13:06:34 Sessions 3 Manual Loads 0 Difficulty Rogue Special Mode None Game No. 115 Rogue 115 Adventurer 0 Explorer 0 Win Type - Total 0 Types 0/0/0/0/0/0/0/0/0/0 Lore% 21 Gallery% 29 Achievement% 16 Wizard Run 0 Options --------- Layout 1 ASCII 0 Keyboard 0 Movement Arrows Keybinds 0 Fullscreen 1 Font 24/Smallcaps Map View 50x35 Zoom Use 0% Tactical HUD 1 Map Filters NONE Filters NONE Steam 1 RUN: d6bd2dd4-f100-45c1-b293-99cba2200204